bitfinex-derivatives/quotes_ETHF0:USTF0_20260207
["timestamp","ask_amount","ask_price","bid_price","bid_amount"]
[1770481497562,31.29068535,2056.8,2056.2,4.32820094]
[1770481497761,0.00583335,2057.0,2056.4,4.32820094]
[1770481498059,31.29068535,2056.9,2056.4,9.29731681]
[1770481498361,31.29068535,2056.9,2056.5,9.29731681]
[1770481499163,31.29068535,2056.9,2056.6,4.96911587]
[1770481499365,31.29068535,2056.9,2056.7,4.96911587]
[1770481499565,31.29068535,2056.9,2056.5,4.32820094]
[1770481499759,31.29068535,2056.9,2056.5,9.2921628]
[1770481499960,31.29068535,2056.9,2056.6,4.96396186]
[1770481500266,31.29068535,2056.9,2056.2,4.32820094]
[1770481500464,31.29068535,2056.9,2056.0,4.32820094]
[1770481500664,5.3366278,2056.8,2055.9,4.32820094]
[1770481500961,5.3366278,2056.8,2055.8,0.00592076]
[1770481501160,31.29068535,2056.7,2055.8,0.00592076]
[1770481501557,31.28476459,2056.6,2055.5,4.32820094]
[1770481501758,31.28476459,2056.6,2055.4,5.76693908]
[1770481501759,24.23292728,2056.6,2054.8,3.39480736]
[1770481501963,24.23292728,2056.6,2054.7,5.78507648]
[1770481501964,13.98940463,2056.5,2054.9,4.97059953]
[1770481502167,13.98940463,2056.5,2055.0,4.97059953]
[1770481502366,13.98940463,2056.5,2055.1,4.97059953]
[1770481502566,13.98940463,2056.5,2055.2,4.97059953]
[1770481502764,5.26590674,2056.4,2055.1,0.00618492]
[1770481503161,13.98940463,2056.3,2055.1,0.00618492]
[1770481503363,18.86340463,2056.9,2055.1,0.00618492]
[1770481503562,5.2294075,2056.4,2055.1,0.00618492]
[1770481503767,5.2294075,2056.4,2055.1,4.62375472]
[1770481503967,13.98940463,2056.3,2055.2,4.6175698]
[1770481504167,5.2294075,2056.3,2055.3,4.6175698]
[1770481504468,13.98940463,2056.2,2055.1,0.00618492]
[1770481504662,24.32536481,2056.7,2055.1,0.00618492]
[1770481504863,5.46196018,2056.1,2055.1,0.00618492]
[1770481505059,4.874,2056.5,2055.1,0.00618492]
[1770481505570,23.98390496,2056.4,2055.1,0.00618492]
[1770481505770,5.12050033,2056.4,2055.1,0.00618492]
[1770481505969,13.98940463,2056.9,2055.1,0.00618492]
[1770481505970,13.98940463,2056.3,2055.1,0.00618492]
[1770481506170,13.98940463,2056.8,2055.1,0.00618492]
[1770481506366,5.12050033,2056.3,2055.1,0.00618492]
[1770481506568,5.41831297,2056.4,2055.1,0.00618492]
[1770481506873,13.98940463,2056.3,2055.1,0.00618492]
[1770481507070,5.41831297,2056.5,2055.1,0.00618492]
[1770481507462,13.98940463,2056.4,2055.1,0.00618492]
[1770481507667,13.98940463,2056.6,2055.1,0.00618492]
[1770481507866,5.57946203,2056.4,2055.1,0.00618492]
[1770481508068,5.57946203,2056.5,2055.1,0.00618492]
[1770481508370,13.98940463,2056.6,2055.1,0.00618492]
[1770481508565,5.32301526,2056.4,2055.1,0.00618492]
[1770481508963,4.874,2056.8,2055.1,0.00618492]
[1770481509164,4.874,2056.7,2055.1,0.00618492]
[1770481509373,5.16923385,2056.3,2055.1,0.00618492]
[1770481509571,4.874,2056.4,2055.1,0.00618492]
[1770481509772,10.04323385,2056.2,2053.7,10.46855994]
[1770481510073,0.24339,2056.1,2053.8,4.61166314]
[1770481510372,4.874,2056.0,2053.9,4.61166314]
[1770481510573,24.16932026,2056.1,2054.0,4.60912591]
[1770481510773,5.30592055,2055.9,2054.1,4.5659071]
[1770481510974,5.30592055,2056.0,2054.0,0.00365868]
[1770481511174,13.98939971,2056.1,2054.0,0.00365868]
[1770481511471,5.60164411,2056.0,2054.0,0.00365868]
[1770481511870,5.60164411,2056.0,2054.1,7.20841204]
[1770481512175,13.98939971,2055.9,2054.2,11.77413366]
[1770481512476,13.98939971,2055.9,2054.5,7.20841204]
[1770481512877,13.98939971,2055.9,2054.5,11.77413366]
[1770481513169,5.12183665,2055.8,2054.1,7.20841204]
[1770481513473,5.12183665,2055.8,2054.2,4.56279951]
[1770481513774,13.98939971,2055.7,2054.0,0.00365868]
[1770481514167,5.58701703,2055.6,2054.0,0.00365868]
[1770481514673,13.98939971,2055.5,2054.0,0.00365868]
[1770481514974,13.99495561,2055.5,2054.0,4.56570454]
[1770481515276,13.99495561,2055.5,2054.1,4.56204586]
[1770481515570,13.99495561,2055.5,2054.7,25.09396519]
[1770481515970,13.99495561,2055.5,2054.0,7.21207072]
[1770481516371,5.46286503,2055.4,2054.1,4.55954456]
[1770481516669,5.46286503,2055.4,2054.0,0.00365868]
[1770481516670,5.46286503,2055.4,2054.2,7.44281097]
[1770481516874,13.98939971,2055.3,2054.1,2.88326641]
[1770481517272,5.46286503,2055.2,2054.0,2.88692509]
[1770481517667,13.98939971,2055.1,2054.0,2.88692509]
[1770481519375,13.98939971,2055.1,2054.2,2.88326641]
[1770481519575,13.98939971,2055.1,2054.4,2.88326641]
[1770481519766,13.04539971,2055.1,2054.4,2.88326641]
[1770481519967,13.04539971,2055.1,2054.5,7.44357712]
[1770481520169,13.04539971,2055.1,2054.5,2.88326641]
[1770481520677,0.0055559,2055.5,2054.8,2.88326641]
[1770481520980,0.0055559,2055.5,2055.2,2.88326641]
[1770481521167,7.49153616,2057.5,2055.3,7.44226143]
[1770481521470,18.6685089,2057.4,2055.5,2.88326641]
[1770481521675,18.6685089,2057.4,2055.7,2.88326641]
[1770481521877,18.6685089,2057.4,2055.9,2.88326641]
[1770481522071,18.67279784,2057.4,2056.1,2.88326641]
[1770481522472,13.04968865,2057.4,2056.2,7.43656974]
[1770481522780,13.04968865,2057.4,2056.3,2.88326641]
[1770481523070,13.04968865,2057.4,2056.4,7.43656974]
[1770481523279,13.04968865,2057.4,2056.4,2.88326641]
[1770481523771,13.04968865,2057.4,2056.7,2.88326641]
[1770481523976,13.04968865,2057.4,2056.6,2.88326641]
[1770481524471,13.04968865,2057.4,2056.7,4.54581857]
[1770481524670,13.04968865,2057.4,2056.6,2.88326641]
[1770481524871,13.04968865,2057.4,2056.7,7.42532643]
[1770481525180,13.04968865,2057.4,2056.5,2.88326641]
[1770481525376,13.04968865,2057.4,2056.4,2.88326641]
[1770481525572,13.04968865,2057.4,2056.3,2.88326641]
[1770481526175,13.04968865,2057.4,2056.2,2.88326641]
[1770481526380,13.04968865,2057.4,2056.2,7.42379312]
[1770481526569,13.04968865,2057.4,2056.2,2.88326641]
[1770481527174,13.04968865,2057.4,2056.2,7.42321819]
[1770481527477,5.44541102,2057.3,2056.0,2.88326641]
[1770481527678,13.04968865,2057.4,2056.0,2.88326641]
[1770481528480,13.04968865,2057.4,2056.4,2.88326641]
[1770481528683,13.04968865,2057.4,2056.5,7.42054831]
[1770481528878,13.04968865,2057.4,2056.5,2.88326641]
[1770481529282,13.04968865,2057.4,2056.7,2.88326641]
[1770481529579,13.04968865,2057.4,2055.9,8.60844634]
[1770481529580,13.04968865,2057.4,2056.5,2.88326641]
[1770481529978,13.04968865,2057.4,2057.0,25.09396519]
[1770481530181,13.04968865,2057.4,2056.5,2.88326641]
[1770481530576,13.04968865,2057.4,2055.9,8.60844634]
[1770481530577,13.04968865,2057.4,2056.4,2.88326641]
[1770481531584,13.04968865,2057.4,2056.5,7.41402964]
[1770481531776,13.04968865,2057.4,2056.6,7.41402964]
[1770481531978,13.04539971,2057.3,2056.6,2.88326641]
[1770481532383,13.04539971,2057.3,2056.5,2.88326641]
[1770481532684,13.04539971,2057.3,2056.3,2.88326641]
[1770481532883,13.04539971,2057.3,2056.4,2.88326641]
[1770481533077,13.04539971,2057.3,2056.3,8.81735156]
[1770481533078,13.04539971,2057.3,2056.3,7.17434084]
[1770481533278,13.04539971,2057.3,2056.4,4.52452887]
[1770481533578,13.04539971,2057.3,2056.4,2.88326641]
[1770481533778,13.04539971,2057.3,2056.4,7.17434084]
[1770481533974,13.04539971,2057.3,2056.5,4.52380774]
[1770481534174,13.04539971,2057.3,2056.4,2.88326641]
[1770481534778,4.874,2059.1,2056.8,2.88326641]
[1770481534983,0.24308,2058.7,2056.7,2.88326641]
[1770481535180,5.31365519,2058.4,2056.6,2.88326641]
[1770481535384,13.04539971,2058.3,2056.5,2.88326641]
[1770481535585,17.91939971,2058.6,2056.5,2.88326641]
[1770481535785,5.62101337,2058.3,2056.5,2.88326641]
[1770481535984,5.62101337,2058.5,2056.5,2.88326641]
[1770481536180,4.874,2058.5,2056.5,2.88326641]
[1770481536387,10.41971954,2058.5,2056.5,2.88326641]
[1770481536885,13.04539971,2058.4,2056.5,2.88326641]
[1770481537287,5.54571954,2058.3,2056.5,2.88326641]
[1770481537687,17.91939971,2058.2,2056.3,2.88326641]
[1770481537985,5.4708977,2058.1,2055.9,0.00402223]
[1770481538186,10.3448977,2058.1,2055.9,2.88728864]
[1770481538487,10.3448977,2058.1,2055.9,0.00402223]
[1770481538685,4.874,2057.9,2055.9,0.00402223]
[1770481538890,17.91939971,2058.0,2055.9,0.00402223]
[1770481539187,17.91939971,2058.0,2055.9,2.88728864]
[1770481539188,13.04539971,2058.0,2055.9,2.88728864]
[1770481539492,5.39837204,2057.8,2056.1,2.88326641]
[1770481539684,5.39837204,2057.9,2056.0,2.88326641]
[1770481539885,13.04539971,2057.8,2056.0,2.88326641]
[1770481540089,4.874,2058.4,2056.0,2.88326641]
[1770481540291,5.25974772,2057.9,2056.0,2.88326641]
[1770481540490,4.874,2058.2,2056.0,2.88326641]
[1770481540688,17.91939971,2058.1,2056.0,2.88326641]
[1770481540889,10.24215039,2058.1,2056.0,2.88326641]
[1770481541193,4.874,2058.1,2056.0,2.88326641]
[1770481541388,23.20733222,2058.0,2056.0,2.88326641]
[1770481541595,10.16193251,2058.0,2056.0,2.88326641]
[1770481541890,4.874,2058.0,2056.0,2.88326641]
[1770481542095,0.00398056,2058.6,2055.9,4.29509666]
[1770481542096,4.874,2057.8,2055.9,0.00402223]
[1770481542492,0.95192934,2057.7,2055.9,0.00402223]
[1770481542793,18.87132905,2057.7,2055.9,0.00402223]
[1770481543188,17.91939971,2057.7,2055.9,0.00402223]
[1770481543581,17.91939971,2057.7,2054.8,7.20841204]
[1770481543582,7.20695731,2057.6,2054.9,2.88326641]
[1770481543790,7.20695731,2057.6,2054.7,5.75176678]
[1770481543791,0.24328,2057.0,2054.7,2.88326641]
[1770481544091,0.24332,2056.7,2054.6,17.20919146]
[1770481544291,0.24336,2056.4,2053.8,2.86990241]
[1770481544491,5.1174,2056.1,2053.8,0.00535365]
[1770481544692,5.7610606,2055.8,2053.8,0.00535365]
[1770481544887,10.6350606,2055.7,2053.8,0.00535365]
[1770481545095,4.874,2055.5,2053.8,0.00535365]
[1770481545291,10.6350606,2055.5,2052.7,5.75176678]
[1770481545599,4.874,2055.3,2052.6,5.75176678]
[1770481545889,5.59633716,2055.2,2052.6,10.17936702]
[1770481546093,4.874,2055.1,2052.7,10.17936702]
[1770481546292,11.45802015,2055.2,2052.8,4.42760024]
[1770481546491,46.07021711,2055.0,2052.8,5.75176678]
[1770481546692,40.8,2055.0,2052.9,10.17936702]
[1770481546896,5.86168299,2054.9,2053.0,4.42760024]
[1770481547094,11.13750963,2054.9,2053.1,4.42760024]
[1770481547293,11.13750963,2054.9,2052.9,5.75176678]
[1770481547497,11.13750963,2054.9,2052.7,5.75647183]
[1770481547693,11.13750963,2054.9,2052.8,4.42087316]
[1770481547993,11.13750963,2054.9,2052.7,0.00470505]
[1770481548395,11.13750963,2054.9,2052.8,5.75176678]
[1770481548585,5.86729252,2054.9,2053.0,5.75176678]
[1770481549384,5.86729252,2054.9,2053.1,5.75176678]
[1770481550098,5.86729252,2054.9,2053.1,10.17195199]
[1770481550393,5.86729252,2054.9,2053.2,4.42018521]
[1770481550596,5.60579166,2054.8,2053.0,5.75176678]
[1770481551092,5.60579166,2054.8,2052.7,0.24848505]
[1770481551093,5.86168299,2054.7,2052.7,0.00470505]
[1770481551498,5.41690046,2054.6,2052.7,0.00470505]
[1770481551690,5.41690046,2054.6,2052.7,4.41622115]
[1770481551891,5.86168299,2054.5,2052.7,0.00470505]
[1770481552087,5.86168299,2054.5,2052.7,5.75647183]
[1770481552797,5.86168299,2054.5,2052.9,5.75176678]
[1770481553298,5.86168299,2054.5,2052.9,4.41142872]
[1770481553491,5.86168299,2054.5,2052.9,5.75176678]
[1770481553690,5.86168299,2054.5,2053.0,10.1631955]
[1770481553891,5.86168299,2054.5,2053.1,4.41142872]
[1770481554092,5.86168299,2054.5,2053.2,4.41142872]
[1770481554291,5.86168299,2054.5,2053.0,11.47068882]
[1770481554492,5.86168299,2054.5,2053.1,4.40282592]
[1770481554796,5.86168299,2054.5,2053.2,4.40282592]
[1770481554996,5.86168299,2054.5,2053.0,5.99551678]
[1770481555399,5.86168299,2054.5,2053.1,4.40276389]
[1770481555596,5.86168299,2054.5,2053.0,0.24375]
[1770481556190,5.86168299,2054.5,2052.7,5.75647183]
[1770481556395,5.51304396,2054.4,2052.7,0.00470505]
[1770481556695,40.8,2054.3,2052.7,0.00470505]
[1770481556889,40.8,2054.3,2052.8,5.18115935]
[1770481557088,0.00560953,2054.9,2052.9,4.40058628]
[1770481557089,5.86168299,2054.2,2052.9,4.40058628]
[1770481557294,0.00560953,2054.9,2052.9,4.40058628]
[1770481557496,46.66168299,2054.8,2053.0,4.39827095]
[1770481557694,5.86168299,2054.8,2053.1,4.39827095]
[1770481557897,5.86168299,2054.8,2053.0,5.31414049]
[1770481558095,5.86168299,2054.8,2053.1,4.39731044]
[1770481558291,5.86168299,2054.8,2053.0,0.24375]
[1770481558497,5.86168299,2054.8,2053.0,11.30965727]
[1770481558799,5.86168299,2054.8,2053.1,4.39565588]
[1770481558998,5.86168299,2054.8,2053.2,4.39633811]
[1770481559198,5.86168299,2054.8,2053.0,5.99551678]
[1770481559395,5.86168299,2054.8,2053.1,4.39653422]
[1770481559697,5.86168299,2054.8,2053.0,0.24375]
[1770481560398,4.874,2054.6,2052.7,0.00470505]
[1770481560603,0.24358,2054.5,2052.7,0.00470505]
[1770481560799,5.11759,2054.4,2052.7,0.00470505]
[1770481560998,10.97927299,2054.4,2052.7,0.00470505]
[1770481561303,4.874,2054.2,2051.8,0.4320015]
[1770481561803,16.38446614,2054.1,2051.8,0.4320015]
[1770481561992,16.38446614,2054.1,2051.8,0.08476713]
[1770481561993,10.5274882,2054.1,2051.8,0.08476713]
[1770481562197,4.874,2054.1,2051.8,0.09050789]
[1770481562399,5.6534882,2054.0,2051.8,0.09050789]
[1770481562901,5.85697794,2053.9,2051.8,0.43664102]
[1770481563103,5.85697794,2053.9,2051.8,0.09050789]
[1770481563299,5.35046497,2053.8,2051.8,0.09050789]
[1770481563506,5.35046497,2053.8,2051.8,0.00574076]
[1770481563691,5.85697794,2053.7,2051.8,0.00574076]
[1770481564104,5.27173408,2053.6,2051.8,0.00574076]
[1770481564303,40.8,2053.5,2051.8,0.00574076]
[1770481564511,46.65697794,2053.5,2051.8,0.00574076]
[1770481564802,5.34498871,2053.4,2051.8,0.00574076]
[1770481565004,5.35093652,2053.4,2051.8,0.00574076]
[1770481565402,5.85697794,2053.3,2051.8,0.00574076]
[1770481565796,5.62989972,2053.2,2051.8,0.00574076]
[1770481566301,5.85697794,2053.1,2051.4,0.07926122]
[1770481566706,5.39312256,2053.0,2051.4,0.07926122]
[1770481567204,5.85697794,2052.9,2051.4,0.08416547]
[1770481568897,5.85697794,2052.8,2051.4,0.08416547]
[1770481569103,5.85697794,2053.3,2051.4,0.08416547]
[1770481569300,11.44153083,2053.3,2051.4,0.08416547]
[1770481569501,5.85697794,2053.3,2051.4,0.08416547]
[1770481569806,5.50163028,2053.2,2051.4,0.08416547]
[1770481570707,5.85697794,2053.1,2051.4,0.08416547]
[1770481570907,5.85697794,2053.3,2051.4,0.08416547]
[1770481571402,11.40915761,2053.3,2051.4,0.08416547]
[1770481572208,5.85697794,2053.3,2051.8,5.75176678]
[1770481572507,5.85697794,2053.3,2051.9,5.75176678]
[1770481572713,5.85697794,2053.3,2052.0,5.75176678]
[1770481573306,5.85697794,2053.3,2052.2,5.75176678]
[1770481573500,5.85697794,2053.3,2052.3,10.17753294]
[1770481573706,0.00594781,2053.4,2052.4,4.42576616]
[1770481573910,40.8,2054.3,2052.5,10.17753294]
[1770481574109,40.8,2054.3,2052.3,11.29771708]
[1770481574309,5.85697794,2054.2,2052.4,8.75188979]
[1770481574810,5.28471137,2054.1,2052.5,8.75188979]
[1770481575010,5.29012318,2054.1,2052.9,25.09396519]
[1770481575211,5.29012318,2054.1,2052.9,25.09878178]
[1770481575412,5.85697794,2054.0,2052.9,0.00481659]
[1770481575808,5.64922935,2053.9,2052.2,4.32481729]
[1770481576209,5.64922935,2053.9,2052.1,4.32481729]
[1770481576210,5.85697794,2053.8,2052.1,4.32481729]
[1770481576607,5.37330734,2053.7,2052.1,4.32481729]
[1770481576808,5.37330734,2053.7,2052.1,4.33072433]
[1770481577015,5.85697794,2053.6,2052.2,4.32481729]
[1770481577215,5.85697794,2053.6,2052.3,4.32481729]
[1770481577713,5.85697794,2053.6,2052.1,0.00590704]
[1770481577714,5.33111362,2053.5,2052.1,0.00590704]
[1770481578214,5.85697794,2053.4,2052.1,0.00590704]
[1770481579517,40.8,2053.3,2052.1,0.00590704]
[1770481579718,45.88596575,2053.3,2052.1,0.00590704]
[1770481579924,5.85697794,2053.2,2052.1,0.00590704]
[1770481580522,5.85697794,2053.2,2052.2,4.32481729]
[1770481581622,5.85697794,2053.2,2052.3,4.32481729]
[1770481581828,5.84642059,2053.2,2052.5,4.32481729]
[1770481582128,40.8,2054.0,2052.5,4.32481729]
[1770481582326,5.84642059,2053.9,2052.6,4.32481729]
[1770481582526,5.84642059,2053.9,2052.7,4.32481729]
[1770481582829,5.84642059,2053.9,2052.9,4.32481729]
[1770481583328,5.84642059,2053.9,2053.0,4.32481729]
[1770481583523,5.7610606,2055.5,2053.3,4.32481729]
[1770481583717,5.7610606,2055.6,2053.4,4.32481729]
[1770481583921,5.51368416,2055.3,2053.2,4.32481729]
[1770481584122,5.7610606,2055.3,2053.3,4.43330393]
[1770481584323,5.7610606,2055.3,2053.2,4.32481729]
[1770481584624,4.878,2055.1,2053.2,4.32481729]
[1770481585128,5.11148099,2055.0,2053.2,4.32481729]
[1770481585321,5.11148099,2055.0,2053.1,8.75845476]
[1770481585517,11.14203664,2055.1,2053.0,4.32481729]
[1770481585726,4.878,2055.0,2053.0,4.32481729]
[1770481586226,10.25897604,2055.0,2053.1,4.32481729]
[1770481587024,10.25897604,2055.0,2053.2,4.32481729]
[1770481587425,5.38097604,2055.0,2053.2,4.32481729]
[1770481587729,5.46809389,2055.1,2053.3,4.32481729]
[1770481587929,5.46809389,2055.1,2053.2,4.32481729]
[1770481588130,5.7610606,2055.1,2053.3,4.43682986]
[1770481588330,5.7610606,2055.1,2053.2,4.32481729]
[1770481588523,10.34609389,2055.0,2053.2,4.32481729]
[1770481588720,5.46809389,2055.0,2053.2,4.32481729]
[1770481589126,5.46809389,2055.0,2053.3,4.32481729]
[1770481589324,40.8,2054.9,2053.3,4.32481729]
[1770481589726,5.11743284,2054.8,2053.3,8.76421367]
[1770481589929,40.8,2054.9,2053.7,25.09396519]
[1770481590124,40.8,2054.9,2053.7,0.00616261]
[1770481590930,40.8,2054.9,2053.7,4.3309799]
[1770481591331,40.8,2054.9,2053.8,4.32481729]
[1770481591825,0.00385102,2055.3,2054.0,4.32481729]
[1770481592228,40.8,2055.2,2054.0,4.32481729]
[1770481592432,40.8,2055.2,2053.9,4.32481729]
[1770481592832,40.8,2055.2,2054.0,4.42930036]
[1770481593137,40.8,2055.2,2053.8,4.32481729]
[1770481593831,40.8,2055.2,2053.9,4.32481729]
[1770481594033,40.8,2055.2,2054.0,4.42623143]
[1770481594235,40.8,2055.2,2053.7,0.00616261]
[1770481594632,5.32875935,2055.1,2053.7,0.00616261]
[1770481597339,4.878,2055.0,2053.7,0.00616261]
[1770481597739,51.01897867,2054.9,2053.7,0.00616261]
[1770481598242,40.8,2054.9,2053.7,0.00616261]
[1770481599242,40.8,2054.9,2053.7,4.3309799]
[1770481600236,40.8,2054.9,2053.8,4.32481729]
[1770481600442,0.00385102,2055.3,2054.1,4.32481729]
[1770481600840,0.00385102,2055.3,2054.0,5.7684236]
[1770481601144,0.00385102,2055.3,2053.9,4.32481729]
[1770481601536,40.8,2055.2,2053.9,4.32481729]
[1770481601738,40.8,2055.2,2054.0,4.43195779]
[1770481601936,40.8,2055.2,2053.8,4.32481729]
[1770481602243,5.09524485,2055.1,2053.7,0.00616261]
[1770481602743,9.97324485,2055.1,2053.7,0.00616261]
[1770481604839,40.8,2055.2,2053.7,2.8980036]
[1770481605438,5.31398821,2055.1,2053.8,2.89184099]
[1770481605634,40.8,2055.2,2053.8,2.89184099]
[1770481606039,40.8,2055.2,2054.1,2.89184099]
[1770481606443,40.8,2055.2,2054.3,2.89184099]
[1770481606742,5.7610606,2056.6,2054.7,2.89184099]
[1770481607042,40.8,2056.1,2054.8,2.89184099]
[1770481607248,40.8,2056.1,2054.7,2.89184099]
[1770481607438,40.8,2056.1,2054.6,2.89184099]
[1770481607639,45.99343951,2056.1,2054.7,2.89184099]
[1770481607843,40.80431824,2056.1,2054.7,2.89184099]
[1770481608535,40.80431824,2056.1,2054.8,7.29419279]
[1770481608738,40.80431824,2056.1,2054.8,2.89184099]
[1770481609139,40.80431824,2056.1,2054.9,2.89184099]
[1770481609934,40.80431824,2056.1,2055.0,2.89184099]
[1770481611242,0.00431824,2056.1,2055.0,2.89184099]
[1770481611837,40.80431824,2056.1,2055.0,2.89184099]
[1770481612041,40.80431824,2056.1,2054.9,2.89184099]
[1770481612242,5.23146375,2056.0,2054.6,2.89184099]
[1770481612545,5.23146375,2056.0,2054.5,2.89184099]
[1770481613746,40.80431824,2056.1,2054.7,2.89184099]
[1770481614142,5.28258028,2056.0,2054.6,2.89184099]
[1770481614544,5.28258028,2056.0,2054.5,7.21665828]
[1770481614745,5.28258028,2056.0,2054.6,7.29611112]
[1770481614941,5.28258028,2056.0,2054.6,2.89184099]
[1770481615142,5.28258028,2056.0,2054.5,2.89184099]
[1770481615751,5.28258028,2056.0,2054.5,7.21665828]
[1770481615952,5.28258028,2056.0,2054.6,4.39475599]
[1770481616146,5.28258028,2056.0,2054.5,2.89184099]
[1770481616349,5.28258028,2056.0,2054.5,7.21665828]
[1770481616544,5.28258028,2056.0,2054.6,7.28937556]
[1770481616854,5.28258028,2056.0,2054.6,2.89184099]
[1770481617145,5.28258028,2056.0,2054.4,2.89184099]
[1770481617347,10.16058028,2056.0,2054.3,2.89184099]
[1770481617554,15.92164088,2056.0,2054.3,2.89184099]
[1770481619044,45.678,2055.9,2054.3,2.89184099]
[1770481619258,51.4390606,2055.9,2054.2,2.89184099]
[1770481619445,10.6390606,2055.7,2054.0,2.89184099]
[1770481619646,4.878,2055.5,2054.0,2.89184099]
[1770481620052,5.17798913,2055.4,2054.1,25.09396519]
[1770481620354,5.17798913,2055.4,2054.0,2.89184099]
[1770481620657,40.8,2055.9,2054.4,2.89184099]
[1770481621054,40.8,2055.9,2054.6,7.21665828]
[1770481621351,0.00431824,2056.1,2055.1,2.89184099]
[1770481621549,0.00431824,2056.1,2054.9,2.89184099]
[1770481621755,46.28614891,2056.0,2054.8,7.21665828]
[1770481621950,40.8,2056.0,2055.0,2.89184099]
[1770481622356,0.00431824,2056.1,2055.1,2.89184099]
[1770481622552,0.00431824,2056.1,2055.0,2.89184099]
[1770481622858,40.8,2056.0,2054.9,2.89184099]
[1770481623059,40.8,2056.0,2054.9,4.39717035]
[1770481623258,45.91825896,2056.0,2054.8,2.89184099]
[1770481623757,45.91825896,2056.0,2054.6,2.89184099]
[1770481623956,45.91825896,2056.0,2054.7,2.89184099]
[1770481624153,40.8,2056.0,2054.7,2.89184099]
[1770481625856,5.09575105,2055.9,2054.6,2.89184099]
[1770481626653,5.09575105,2055.9,2054.7,2.89184099]
[1770481627562,9.97375105,2055.9,2054.3,7.21665828]
[1770481628163,9.97375105,2055.9,2054.4,7.28642868]
[1770481628369,40.8,2055.8,2054.4,2.89184099]
[1770481628759,5.17822074,2055.7,2054.4,2.89184099]
[1770481629665,40.8,2055.8,2054.5,2.89184099]
[1770481629858,40.8,2055.8,2054.5,7.28837973]
[1770481630060,40.8,2055.8,2054.6,4.39653874]
[1770481630263,40.8,2055.8,2054.5,2.89184099]
[1770481631359,40.8,2055.8,2054.6,2.89184099]
[1770481632455,5.61472557,2055.7,2054.3,2.89184099]
[1770481632656,5.61472557,2055.7,2054.2,2.89184099]
[1770481632657,16.25378617,2055.7,2054.2,2.89184099]
[1770481632858,10.6390606,2055.5,2054.0,2.89184099]
[1770481633060,4.878,2055.2,2053.9,2.89184099]
[1770481633465,5.63218747,2055.1,2053.9,2.89184099]
[1770481633661,5.63218747,2055.1,2053.8,2.89184099]
[1770481633864,40.8,2055.0,2053.8,2.89184099]
[1770481634061,40.8,2055.0,2054.0,2.89184099]
[1770481634268,40.8,2055.0,2054.1,7.21665828]
[1770481634463,40.8,2055.0,2054.2,7.29669996]
[1770481634661,5.7610606,2055.8,2054.4,2.89184099]
[1770481634857,5.7610606,2055.7,2054.4,2.89184099]
[1770481635060,40.8,2055.6,2054.3,2.89184099]
[1770481635369,10.6390606,2055.5,2054.2,2.89184099]
[1770481635769,5.5680608,2055.4,2054.2,2.89184099]
[1770481636269,5.5680608,2055.4,2054.1,7.21665828]
[1770481636565,10.6390606,2055.3,2054.0,2.89184099]
[1770481636769,5.7610606,2055.2,2053.9,2.89184099]
[1770481637069,15.83899564,2055.2,2053.8,2.89184099]
[1770481637271,4.878,2055.0,2053.7,2.8980036]
[1770481637665,5.7610606,2054.8,2053.7,0.00616261]
[1770481637866,5.19173502,2054.9,2053.7,0.00616261]
[1770481638265,5.7610606,2055.3,2053.8,2.89184099]
[1770481638460,5.7610606,2055.4,2054.0,2.89184099]
[1770481638667,5.19173502,2055.3,2053.9,2.89184099]
[1770481639169,5.19173502,2055.3,2054.0,2.89184099]
[1770481639566,11.12328622,2055.4,2053.9,7.21665828]
[1770481639763,5.7610606,2055.4,2053.9,7.21665828]
[1770481640168,5.6166092,2055.3,2054.0,4.40189379]
[1770481640371,5.7610606,2055.2,2053.8,2.89184099]
[1770481640663,10.95937741,2055.1,2053.7,2.8980036]
[1770481641070,40.8,2055.0,2053.7,2.8980036]
[1770481641271,40.8,2055.0,2053.8,2.89184099]
[1770481641461,5.19831681,2054.9,2053.8,2.89184099]
[1770481641666,5.19831681,2054.9,2053.9,2.89184099]
[1770481641865,5.19831681,2054.9,2053.8,2.89184099]
[1770481642170,45.678,2055.0,2053.7,0.00616261]
[1770481642371,46.5610606,2055.0,2053.7,0.00616261]
[1770481642570,5.28498902,2054.9,2053.7,0.00616261]
[1770481643871,5.28498902,2054.9,2053.7,2.8980036]
[1770481644075,40.8,2055.0,2053.9,2.89184099]
[1770481644369,40.8,2055.0,2054.0,2.89184099]
[1770481645468,40.8,2055.0,2054.1,2.89184099]
[1770481645666,40.8,2055.0,2054.2,2.89184099]
[1770481645867,40.8,2055.0,2054.1,2.89184099]
[1770481646361,5.7610606,2055.7,2054.2,2.89184099]
[1770481646565,5.7610606,2056.0,2054.5,2.89184099]
[1770481646769,40.8,2055.6,2054.5,2.89184099]
[1770481648171,40.8,2055.6,2054.4,2.89184099]
[1770481648373,40.8,2055.6,2054.5,2.89184099]
[1770481648569,40.8,2055.6,2054.4,2.89184099]
[1770481648769,5.44461939,2055.5,2054.5,2.89184099]
[1770481648969,40.8,2055.6,2054.5,2.89184099]
[1770481649566,40.8,2055.6,2054.3,2.89184099]
[1770481649772,5.10468896,2055.5,2054.2,2.89184099]
[1770481649967,40.8,2055.6,2054.3,2.89184099]
[1770481650277,40.8,2055.6,2054.4,2.89184099]
[1770481650474,40.8,2055.6,2054.5,2.89184099]
[1770481652372,40.8,2055.6,2054.6,2.89184099]
[1770481652568,40.8,2055.6,2054.5,2.89184099]
[1770481652774,40.8,2055.6,2054.4,7.21665828]
[1770481652974,40.8,2055.6,2054.4,2.89184099]
[1770481653478,5.60339176,2055.5,2054.3,2.89184099]
[1770481653674,40.8,2055.6,2054.3,2.89184099]
[1770481654174,40.8,2055.6,2054.4,2.89184099]
[1770481654680,40.8,2055.6,2054.3,7.28225147]
[1770481654981,40.8,2055.6,2054.3,2.89184099]
[1770481655675,5.16474546,2055.5,2054.3,2.89184099]
[1770481656379,5.16474546,2055.5,2054.2,2.89184099]
[1770481656579,5.16474546,2055.5,2054.3,2.89184099]
[1770481656880,40.8,2055.6,2054.3,2.89184099]
[1770481657081,40.8,2055.6,2054.3,7.21665828]
[1770481657282,40.8,2055.6,2054.4,7.27656596]
[1770481657485,40.8,2055.6,2054.4,2.89184099]
[1770481658275,5.39704611,2055.5,2054.3,2.89184099]
[1770481658479,10.27504611,2055.5,2054.2,2.89184099]
[1770481658682,16.03610671,2055.5,2054.1,2.89184099]
[1770481659774,4.878,2055.0,2053.7,2.8980036]
[1770481659979,10.6390606,2055.0,2053.7,0.00616261]
[1770481660179,8.59759632,2055.4,2053.3,2.89184099]
[1770481660180,10.6390606,2054.6,2053.3,2.89184099]
[1770481660384,10.6390606,2054.6,2053.2,2.89184099]
[1770481660682,10.06919933,2054.5,2053.2,2.89184099]
[1770481660988,5.7610606,2054.2,2052.8,2.89184099]
[1770481661186,10.6390606,2054.2,2052.8,2.89184099]